bitfinex-derivatives/quotes_BTCF0:USTF0_20250822
["timestamp","ask_amount","ask_price","bid_price","bid_amount"]
[1755854315415,1.06181,113030.0,113020.0,0.72036913]
[1755854316419,1.06181,113030.0,113020.0,0.72136913]
[1755854316821,1.06181,113030.0,113020.0,0.80986013]
[1755854317020,1.06181,113030.0,113020.0,0.72136913]
[1755854317213,1.06081,113030.0,113020.0,0.72136913]
[1755854317414,1.06081,113030.0,113020.0,0.72236913]
[1755854317718,1.06081,113030.0,113020.0,1.45096991]
[1755854317918,0.24241,113030.0,113020.0,0.58914507]
[1755854318321,0.24241,113030.0,113020.0,1.14776463]
[1755854319822,0.24241,113030.0,113020.0,1.05927363]
[1755854320222,0.24241,113030.0,113020.0,1.077099]
[1755854323724,0.24241,113030.0,113020.0,1.07721919]
[1755854324726,0.24241,113030.0,113020.0,1.08619902]
[1755854325025,0.1935,113030.0,113020.0,1.08619902]
[1755854325226,0.15388,113030.0,113020.0,1.17469002]
[1755854325419,0.15388,113030.0,113020.0,1.4539998]
[1755854326613,0.15388,113030.0,113020.0,1.17469002]
[1755854327223,0.12224,113030.0,113020.0,1.50178953]
[1755854327421,0.12224,113030.0,113020.0,1.46990546]
[1755854328215,0.12224,113030.0,113020.0,1.71990546]
[1755854336633,0.23211,113050.0,113040.0,0.04633]
[1755854336937,0.23211,113050.0,113040.0,1.84091956]
[1755854338030,0.23211,113050.0,113040.0,1.86478582]
[1755854338226,0.14725,113050.0,113040.0,2.232571]
[1755854338536,0.14925,113050.0,113040.0,2.1440956]
[1755854338935,0.18211,113050.0,113040.0,2.1440956]
[1755854339137,0.18211,113050.0,113040.0,2.232571]
[1755854339831,0.18011,113050.0,113040.0,2.232571]
[1755854340232,0.11616,113050.0,113040.0,2.593371]
[1755854340434,0.11616,113050.0,113040.0,2.60132704]
[1755854341439,0.11616,113050.0,113040.0,2.62559196]
[1755854341638,0.11516,113050.0,113040.0,2.62759196]
[1755854341838,0.11516,113050.0,113040.0,2.62959196]
[1755854343639,0.13801,113050.0,113040.0,2.62959196]
[1755854344035,0.11516,113050.0,113040.0,2.62959196]
[1755854344740,0.13801,113050.0,113040.0,2.62931196]
[1755854345743,0.17911,113050.0,113040.0,2.62931196]
[1755854346633,0.17911,113050.0,113040.0,2.64527939]
[1755854347342,0.14725,113050.0,113040.0,2.64527939]
[1755854350735,0.13801,113050.0,113040.0,2.64527939]
[1755854351239,0.11516,113050.0,113040.0,2.64527939]
[1755854351433,0.13801,113050.0,113040.0,2.64527939]
[1755854353346,0.17911,113050.0,113040.0,2.64503939]
[1755854353543,0.16256,113050.0,113040.0,1.82779939]
[1755854353747,0.23211,113050.0,113040.0,2.64499939]
[1755854354348,0.14725,113050.0,113040.0,2.64499939]
[1755854354548,0.17911,113050.0,113040.0,2.64499939]
[1755854354745,0.14725,113050.0,113040.0,2.64499939]
[1755854356552,0.14725,113050.0,113040.0,2.59720966]
[1755854358850,0.1244,113050.0,113040.0,2.66068608]
[1755854359063,0.11516,113050.0,113040.0,2.66068608]
[1755854359565,0.13647,113050.0,113040.0,2.66068608]
[1755854360364,0.13647,113050.0,113040.0,2.67863597]
[1755854361162,0.14564,113050.0,113040.0,2.67863597]
[1755854361465,0.17912,113050.0,113040.0,2.67863597]
[1755854361668,0.20192,113050.0,113040.0,2.67863597]
[1755854361860,0.20192,113050.0,113040.0,2.67843597]
[1755854362652,0.17912,113050.0,113040.0,2.67843597]
[1755854362857,0.14564,113050.0,113040.0,2.67843597]
[1755854363763,0.17912,113050.0,113040.0,2.67843597]
[1755854363961,0.20192,113050.0,113040.0,2.67848465]
[1755854364265,0.23125,113050.0,113040.0,2.24718305]
[1755854364565,0.23125,113050.0,113040.0,2.24714305]
[1755854364756,0.23125,113050.0,113040.0,2.33561845]
[1755854365268,0.23125,113050.0,113040.0,2.24714305]
[1755854366164,0.23125,113050.0,113040.0,2.3107906]
[1755854367371,0.23125,113050.0,113040.0,2.33574958]
[1755854367667,0.23125,113050.0,113040.0,1.68865462]
[1755854367865,0.23205,113050.0,113040.0,1.04888418]
[1755854368069,0.51135978,113050.0,113040.0,1.5864144]
[1755854368265,0.51135978,113050.0,113040.0,1.63418763]
[1755854368472,0.51135978,113050.0,113040.0,0.78064763]
[1755854368673,0.51135978,113050.0,113040.0,1.05995741]
[1755854368874,0.51135978,113050.0,113040.0,0.11885785]
[1755854369073,0.51135978,113050.0,113040.0,0.39816763]
[1755854369373,0.51135978,113050.0,113040.0,0.39785317]
[1755854370276,0.23205,113050.0,113040.0,0.38241317]
[1755854370667,0.51135978,113050.0,113040.0,0.38241317]
[1755854371371,1.12215978,113050.0,113040.0,0.39638879]
[1755854371574,1.12215978,113050.0,113040.0,0.06930578]
[1755854371776,1.12215978,113050.0,113040.0,0.34861556]
[1755854371969,1.12215978,113050.0,113040.0,0.34761556]
[1755854372362,1.12215978,113050.0,113040.0,0.34661556]
[1755854372568,1.12135978,113050.0,113040.0,0.34661556]
[1755854374171,1.12135978,113050.0,113040.0,0.42144556]
[1755854374373,0.48125,113050.0,113040.0,0.72146534]
[1755854376278,0.48125,113050.0,113040.0,0.44203867]
[1755854377468,0.48125,113050.0,113040.0,0.52364578]
[1755854377769,0.48125,113050.0,113040.0,0.80283867]
[1755854378672,0.23125,113050.0,113040.0,0.80283867]
[1755854381378,0.1933,113050.0,113040.0,0.76376867]
[1755854385775,0.1933,113050.0,113040.0,0.48457578]
[1755854386079,0.1933,113050.0,113040.0,0.76376867]
[1755854386285,0.23125,113050.0,113040.0,0.80283867]
[1755854386582,0.23125,113050.0,113040.0,0.79486086]
[1755854387788,0.23125,113050.0,113040.0,0.51566797]
[1755854387980,0.23125,113050.0,113040.0,0.43406086]
[1755854388180,0.23125,113050.0,113040.0,0.15486797]
[1755854388483,0.51044289,113050.0,113040.0,0.15486797]
[1755854389389,0.23125,113050.0,113040.0,0.15486797]
[1755854393082,1.04777,113050.0,113040.0,0.15486797]
[1755854393290,1.32696289,113050.0,113040.0,0.15486797]
[1755854393989,0.51044289,113050.0,113040.0,0.15486797]
[1755854394189,1.32692289,113050.0,113040.0,0.15486797]
[1755854394388,1.04773,113050.0,113040.0,0.15486797]
[1755854394585,1.04773,113050.0,113040.0,0.11192797]
[1755854394777,1.68772289,113050.0,113040.0,0.07571797]
[1755854394981,1.93772289,113050.0,113040.0,0.05932797]
[1755854395181,1.93772289,113050.0,113040.0,0.03547492]
[1755854395381,1.93772289,113050.0,113040.0,0.05932797]
[1755854396086,1.93772289,113050.0,113040.0,0.03547492]
[1755854396291,1.93778375,113050.0,113040.0,0.31472867]
[1755854396677,1.93778375,113050.0,113040.0,0.34555953]
[1755854396884,1.65953,113050.0,113040.0,0.34555953]
[1755854397084,1.65953,113050.0,113040.0,0.06630578]
[1755854397292,1.93878375,113050.0,113040.0,0.34555953]
[1755854397590,1.93878375,113050.0,113040.0,0.34455953]
[1755854397988,2.11410375,113050.0,113040.0,0.34455953]
[1755854398784,2.10518375,113050.0,113040.0,0.33534953]
[1755854399689,2.10518375,113050.0,113040.0,0.34453953]
[1755854400375,2.10518375,113050.0,113040.0,0.06528578]
[1755854400577,1.82593,113050.0,113040.0,0.34453953]
[1755854400884,1.82585,113050.0,113040.0,0.34453953]
[1755854401091,2.10510375,113050.0,113040.0,0.41998953]
[1755854401589,2.10510375,113050.0,113040.0,0.16144578]
[1755854401785,2.10510375,113050.0,113040.0,0.02457]
[1755854401992,0.12162,113040.0,113030.0,0.04777323]
[1755854402179,0.09742,113030.0,113020.0,0.14297323]
[1755854402384,0.95306,113030.0,113020.0,0.11832]
[1755854402585,1.23231375,113030.0,113020.0,0.38364375]
[1755854402779,1.23231375,113030.0,113020.0,0.32685375]
[1755854403085,1.23231375,113030.0,113020.0,0.08128]
[1755854403286,1.23231375,113030.0,113020.0,0.36053375]
[1755854403590,0.95306,113030.0,113020.0,0.36253375]
[1755854403884,1.23231375,113030.0,113020.0,0.39957375]
[1755854404091,1.23131375,113030.0,113020.0,0.39957375]
[1755854404291,0.95206,113030.0,113020.0,0.12032]
[1755854405290,1.59217539,113030.0,113020.0,0.02786416]
[1755854405481,1.59797539,113030.0,113020.0,0.05089416]
[1755854405981,1.57377539,113030.0,113020.0,0.05089416]
[1755854406176,1.58820539,113030.0,113020.0,0.02786416]
[1755854406978,1.58820539,113030.0,113020.0,0.02790416]
[1755854408191,1.58820539,113030.0,113020.0,0.05093416]
[1755854409192,1.30889,113030.0,113020.0,0.05093416]
[1755854409383,1.58820539,113030.0,113020.0,0.05093416]
[1755854409790,1.58820539,113030.0,113020.0,0.02707]
[1755854410481,1.58820539,113030.0,113020.0,0.00404]
[1755854412396,1.58820539,113030.0,113020.0,0.02707]
[1755854412788,1.78128539,113030.0,113020.0,0.02707]
[1755854416600,1.50197,113030.0,113020.0,0.02707]
[1755854417002,1.78128539,113030.0,113020.0,0.02707]
[1755854417194,1.78128539,113030.0,113020.0,0.00404]
[1755854418698,0.11966,113020.0,113010.0,0.02386416]
[1755854418897,0.11966,113010.0,113000.0,0.04678416]
[1755854419095,1.54161285,113010.0,112990.0,0.09639416]
[1755854419300,0.48046,113000.0,112990.0,0.14406416]
[1755854419500,0.48046,113000.0,112990.0,0.42337955]
[1755854419698,0.48046,113000.0,112990.0,0.14406416]
[1755854420004,0.47746,113000.0,112990.0,0.42337955]
[1755854420300,0.47746,113000.0,112990.0,0.14406416]
[1755854420704,0.47746,113000.0,112990.0,0.14706416]
[1755854420897,0.47746,113000.0,112990.0,0.42637955]
[1755854421209,0.47746,113000.0,112990.0,0.05161416]
[1755854421506,0.75677539,113000.0,112990.0,0.02592]
[1755854421701,0.47746,113000.0,112990.0,0.02592]
[1755854421905,0.75677539,113000.0,112990.0,0.02592]
[1755854422105,0.82761432,113000.0,112990.0,0.02592]
[1755854422500,0.82761432,113000.0,112990.0,0.003]
[1755854423108,0.82861432,113000.0,112990.0,0.02392]
[1755854423309,0.54929893,113000.0,112990.0,0.02392]
[1755854423511,0.82861432,113000.0,112990.0,0.02392]
[1755854423717,0.82861432,113000.0,112990.0,0.05733]
[1755854424817,0.95441432,113000.0,112990.0,0.05733]
[1755854425211,0.95441432,113000.0,112990.0,0.10594416]
[1755854425418,0.67509893,113000.0,112990.0,0.14406416]
[1755854425720,1.52105893,113000.0,112990.0,0.14406416]
[1755854426615,1.52105893,113000.0,112990.0,0.1202]
[1755854428524,1.52105893,113000.0,112990.0,0.09615]
[1755854429318,1.52009893,113000.0,112990.0,0.09615]
[1755854429519,0.67509893,113000.0,112990.0,0.09615]
[1755854429720,1.51941893,113000.0,112990.0,0.09615]
[1755854430123,0.67509893,113000.0,112990.0,0.09615]
[1755854430518,1.51913893,113000.0,112990.0,0.09615]
[1755854430821,1.51901893,113000.0,112990.0,0.09615]
[1755854432324,1.51901893,113000.0,112990.0,0.08208]
[1755854432513,1.79833432,113000.0,112990.0,0.08208]
[1755854433324,1.51901893,113000.0,112990.0,0.08208]
[1755854433531,1.79833432,113000.0,112990.0,0.08208]
[1755854435728,1.51725893,113000.0,112990.0,0.39951539]
[1755854436524,1.7967068,113000.0,112990.0,0.1202]
[1755854436723,1.7967068,113000.0,112990.0,0.39964787]
[1755854437312,1.7961068,113000.0,112990.0,0.39964787]
[1755854437916,1.51665893,113000.0,112990.0,0.39964787]
[1755854438117,1.7961068,113000.0,112990.0,0.1202]
[1755854438316,1.7961068,113000.0,112990.0,0.39964787]
[1755854439025,1.51665893,113000.0,112990.0,0.39964787]
[1755854439226,1.7961068,113000.0,112990.0,0.39964787]
[1755854439424,1.51665893,113000.0,112990.0,0.37559787]
[1755854439623,0.67509893,113000.0,112990.0,0.37559787]
[1755854439825,1.7955068,113000.0,112990.0,0.39964787]
[1755854440424,1.51605893,113000.0,112990.0,0.14406416]
[1755854440626,1.7955068,113000.0,112990.0,0.42351203]
[1755854442630,0.67509893,113000.0,112990.0,0.42351203]
[1755854442926,1.6693468,113000.0,112990.0,0.42351203]
[1755854443127,1.6693468,113000.0,112990.0,0.14406416]
[1755854443326,1.6693468,113000.0,112990.0,0.42351203]
[1755854443927,1.38989893,113000.0,112990.0,0.42351203]
[1755854444124,1.6693468,113000.0,112990.0,0.42351203]
[1755854444825,0.8287468,113000.0,112990.0,0.42351203]
[1755854445021,1.03073893,113000.0,112990.0,0.42351203]
[1755854446029,1.03041893,113000.0,112990.0,0.42351203]
[1755854446429,1.03041893,113000.0,112990.0,0.14406416]
[1755854446929,1.03041893,113000.0,112990.0,0.42351203]
[1755854449335,1.03041893,113000.0,112990.0,0.45528795]
[1755854449523,0.19149893,113000.0,112990.0,0.73473582]
[1755854449724,1.02925893,113000.0,112990.0,0.81608795]
[1755854449924,1.02925893,113000.0,112990.0,0.79222379]
[1755854451124,0.07833,113010.0,113000.0,0.11715]
[1755854451321,0.93211,113010.0,113000.0,1.06862166]
[1755854452333,0.93411,113010.0,113000.0,1.06862166]
[1755854452927,0.93611,113010.0,113000.0,1.06862166]
[1755854453134,0.95377,113010.0,113000.0,1.06862166]
[1755854453335,0.96279392,113010.0,113000.0,1.06862166]
[1755854455034,0.94513392,113010.0,113000.0,1.06862166]
[1755854455334,1.01515249,113010.0,113000.0,1.06862166]
[1755854457339,1.01515249,113010.0,113000.0,1.09249142]
[1755854460539,1.00612857,113010.0,113000.0,1.09249142]
[1755854461136,1.00612857,113010.0,113000.0,0.53359568]
[1755854461439,1.00612857,113010.0,113000.0,1.0607155]
[1755854461836,1.00612857,113010.0,113000.0,0.78126763]
[1755854462040,1.00612857,113010.0,113000.0,1.0607155]
[1755854462338,1.00336857,113010.0,113000.0,1.0607155]
[1755854463337,1.30047644,113010.0,113000.0,0.46874976]
[1755854463642,1.35088644,113010.0,113000.0,1.0607155]
[1755854464544,1.35088644,113010.0,113000.0,0.50181976]
[1755854464737,1.35088644,113010.0,113000.0,1.0607155]
[1755854465137,1.35020644,113010.0,113000.0,1.0607155]
[1755854465434,1.35020644,113010.0,113000.0,0.45440976]
[1755854465638,1.35020644,113010.0,113000.0,1.0133055]
[1755854466740,1.35020644,113010.0,113000.0,1.0463755]
[1755854466941,1.02034857,113010.0,113000.0,0.04675976]
[1755854467142,1.35020644,113010.0,113000.0,0.02386976]
[1755854467543,1.35020644,113010.0,113000.0,0.30331763]
[1755854468140,1.35020644,113010.0,113000.0,0.02386976]
[1755854468338,1.35020644,113010.0,113000.0,0.30331763]
[1755854469142,1.35020644,113010.0,113000.0,0.32620763]
[1755854469942,1.53444644,113010.0,113000.0,0.04675976]
[1755854470248,1.53444644,113010.0,113000.0,0.32620763]
[1755854472044,1.53444644,113010.0,113000.0,0.04675976]
[1755854472250,2.10979431,113010.0,112990.0,0.35798355]
[1755854472446,0.72131574,113000.0,112990.0,0.35725763]
[1755854472646,0.67090574,113000.0,112990.0,0.07780976]
[1755854472848,0.67090574,113000.0,112990.0,0.32620763]
[1755854472849,1.03170574,113000.0,112990.0,0.32620763]
[1755854473048,1.08211574,113000.0,112990.0,0.04675976]
[1755854473249,1.08211574,113000.0,112990.0,0.02289]
[1755854473951,0.80266787,113000.0,112990.0,0.02289]
[1755854474151,0.52322,113000.0,112990.0,0.02289]
[1755854474354,0.80266787,113000.0,112990.0,0.02289]
[1755854474554,0.80266787,113000.0,112980.0,0.04676619]
[1755854474555,0.09011,112990.0,112980.0,0.04676619]
[1755854474849,0.43642,112990.0,112970.0,0.32425787]
[1755854475050,1.17566787,112980.0,112970.0,0.32425787]
[1755854475253,0.94663,112980.0,112970.0,0.33338787]
[1755854475452,0.94663,112980.0,112970.0,0.10281]
[1755854475752,1.22671787,112980.0,112970.0,0.39659787]
[1755854476150,0.94827,112980.0,112970.0,0.11715]
[1755854476356,0.95027,112980.0,112970.0,0.3966876]
[1755854477359,0.11007,112980.0,112970.0,0.3966876]
[1755854477548,0.96045849,112980.0,112970.0,0.3966876]
[1755854479555,0.96045849,112980.0,112970.0,0.11715]
[1755854479755,0.96045849,112980.0,112970.0,0.3966876]
[1755854480158,0.11905849,112980.0,112970.0,0.3966876]
[1755854480354,0.96037849,112980.0,112970.0,0.3966876]
[1755854481260,0.11905849,112980.0,112970.0,0.3966876]
[1755854481451,0.05098849,112980.0,112970.0,0.3966876]
[1755854481652,0.03496849,112980.0,112970.0,0.3966876]
[1755854481855,0.02598,112980.0,112970.0,0.3966876]
[1755854482655,0.04255,112980.0,112970.0,0.3966876]
[1755854483364,0.05151684,112980.0,112970.0,0.3966876]
[1755854483666,0.04255,112980.0,112970.0,0.3966876]
[1755854485263,0.003,112980.0,112970.0,0.7574876]
[1755854487057,0.001,112980.0,112970.0,0.7574876]
[1755854487254,0.001,112980.0,112970.0,1.0370252]
[1755854487460,1.24385,113000.0,112990.0,0.12139]
[1755854487661,0.45422,113000.0,112990.0,0.4009276]
[1755854488257,0.46317955,113000.0,112990.0,0.4009276]
[1755854489061,0.46417955,113000.0,112990.0,0.4009276]
[1755854489267,0.46617955,113000.0,112990.0,0.4009276]
[1755854489665,0.46617955,113000.0,112990.0,0.12139]
[1755854489864,0.46617955,113000.0,112990.0,0.4009276]
[1755854491363,0.48383955,113000.0,112990.0,0.4009276]
[1755854491564,0.46617955,113000.0,112990.0,0.4009276]
[1755854492469,0.48383955,113000.0,112990.0,0.4009276]
[1755854493063,0.46617955,113000.0,112990.0,0.4009276]
[1755854493464,0.41576955,113000.0,112990.0,0.4009276]
[1755854493664,0.46617955,113000.0,112990.0,0.4009276]
[1755854494464,0.46617955,113000.0,112990.0,0.12139]
[1755854494667,0.48383955,113000.0,112990.0,0.4009276]
[1755854495672,0.46617955,113000.0,112990.0,0.4009276]
[1755854501480,1.30197955,113000.0,112990.0,0.4009276]
[1755854501974,1.31963955,113000.0,112990.0,0.12139]
[1755854502167,1.31963955,113000.0,112990.0,0.4009276]
[1755854502771,0.48383955,113000.0,112990.0,0.4009276]
[1755854502973,1.31915955,113000.0,112990.0,0.4009276]
[1755854504672,0.48383955,113000.0,112990.0,0.4009276]
[1755854504873,1.31915955,113000.0,112990.0,0.4009276]
[1755854505471,1.26874955,113000.0,112990.0,0.4009276]
[1755854505669,1.31915955,113000.0,112990.0,0.4009276]
[1755854507478,1.31915955,113000.0,112990.0,0.12139]
[1755854507678,1.31915955,113000.0,112990.0,0.4009276]
[1755854512376,1.59859661,113000.0,112990.0,0.40082706]
[1755854514588,1.59559661,113000.0,112990.0,0.40082706]
[1755854514979,1.59559661,113000.0,112990.0,0.36599706]
[1755854515180,1.59559661,113000.0,112990.0,0.38483706]
[1755854515381,0.48383955,113000.0,112990.0,0.39899706]
[1755854515578,0.88612955,113000.0,112990.0,0.11956]
[1755854515878,0.88612955,113000.0,112990.0,0.43081875]
[1755854516077,0.04501,113000.0,112990.0,1.07105581]
[1755854516387,0.04601,113000.0,112990.0,1.07105581]
[1755854518389,0.04341,113000.0,112990.0,0.79156469]
[1755854518684,0.02684,113000.0,112990.0,0.79156469]
[1755854519281,0.02684,113000.0,112990.0,0.83933792]
[1755854519987,0.02684,113000.0,112990.0,0.80751623]
[1755854519988,0.02484,113000.0,112990.0,0.80751623]
[1755854520176,0.01076,113000.0,112990.0,0.80751623]
[1755854520376,0.09737819,113010.0,112990.0,0.79335623]
[1755854520377,0.09340819,113010.0,112990.0,0.79335623]
[1755854520582,0.15563819,113010.0,113000.0,0.42979701]
[1755854520783,0.17087819,113010.0,113000.0,0.42979701]
[1755854523489,0.95314819,113010.0,113000.0,0.42979701]
[1755854523880,1.00355819,113010.0,113000.0,0.42979701]
[1755854524392,0.17287819,113010.0,113000.0,0.42979701]
[1755854524592,1.00355819,113010.0,113000.0,0.42979701]
[1755854525190,0.17187819,113010.0,113000.0,0.42979701]
[1755854525789,0.12146819,113010.0,113000.0,0.42979701]
[1755854526685,0.11986819,113010.0,113000.0,0.397923]
[1755854526982,0.12246819,113010.0,113000.0,0.397923]
[1755854528494,0.11986819,113010.0,113000.0,0.397923]
[1755854529592,0.17027819,113010.0,113000.0,0.397923]
[1755854530093,0.11986819,113010.0,113000.0,0.397923]
[1755854530686,0.12246819,113010.0,113000.0,0.11854]
[1755854530891,0.12246819,113010.0,113000.0,0.397923]
[1755854531590,0.17287819,113010.0,113000.0,0.397923]
[1755854532296,0.17287819,113010.0,113000.0,0.396923]
[1755854532497,0.17087819,113010.0,113000.0,0.396923]
[1755854533000,0.09392857,113010.0,113000.0,0.396923]
[1755854533200,0.09392857,113010.0,113000.0,0.757723]
[1755854534092,0.01469,113020.0,113000.0,0.757723]
[1755854534292,0.09476,113020.0,113010.0,0.397923]
[1755854534493,0.1037536,113020.0,113010.0,0.397923]
[1755854535199,0.1017536,113020.0,113010.0,0.397923]
[1755854535900,0.1037536,113020.0,113010.0,0.397923]
[1755854536096,0.1214136,113020.0,113010.0,0.08481]
[1755854536302,0.3523866,113020.0,113010.0,0.07065]
[1755854536602,0.4027966,113020.0,113010.0,0.12824894]
[1755854536796,0.7643966,113020.0,113010.0,0.09451894]
[1755854537002,0.7643966,113020.0,113010.0,0.04770894]
[1755854537294,0.01694,113010.0,113000.0,0.10045292]
[1755854537497,1.01527087,113010.0,113000.0,0.12289292]
[1755854537698,1.29465387,113010.0,113000.0,0.12289292]
[1755854537899,1.29465387,113010.0,113000.0,0.08822292]
[1755854538398,1.65545387,113010.0,113000.0,0.07045894]
[1755854538900,1.65545387,113010.0,113000.0,0.04659]
[1755854539099,1.65545387,113010.0,113000.0,0.07045894]
[1755854539695,1.65545387,113010.0,113000.0,0.04801894]
[1755854539891,1.65545387,113010.0,113000.0,0.02415]
[1755854540097,1.65745387,113010.0,113000.0,0.02415]
[1755854540296,1.65745387,113010.0,113000.0,0.04801894]
[1755854540597,1.65745387,113010.0,113000.0,0.07045894]
[1755854541103,0.54643087,113010.0,113000.0,0.10512894]
[1755854541302,1.01835087,113010.0,113000.0,0.78484194]
[1755854543307,1.01835087,113010.0,113000.0,0.50545894]
[1755854543505,1.01835087,113010.0,113000.0,0.78484194]
[1755854544005,1.01835087,113010.0,113000.0,0.78485431]
[1755854546105,1.01835087,113010.0,113000.0,0.81672832]
[1755854546309,1.01835087,113010.0,113000.0,0.53734532]
[1755854546698,1.01835087,113010.0,113000.0,0.51346401]
[1755854548709,0.18563087,113010.0,113000.0,0.51346401]
[1755854548911,1.01831087,113010.0,113000.0,0.51346401]
[1755854549911,1.01831087,113010.0,113000.0,0.79284701]
[1755854550208,0.13522087,113010.0,113000.0,0.79284701]
[1755854550408,0.95016087,113010.0,113000.0,0.79284701]
[1755854550610,1.00057087,113010.0,113000.0,0.79284701]
[1755854551009,1.00057087,113010.0,113000.0,0.79283744]
[1755854552206,1.00013087,113010.0,113000.0,0.79283744]
[1755854553014,1.01779087,113010.0,113000.0,0.79283744]
[1755854553412,1.01779087,113010.0,113000.0,0.51345444]
[1755854553716,1.24676387,113010.0,113000.0,0.16272366]
[1755854553908,1.29717387,113010.0,113000.0,0.16272366]
[1755854554726,1.29717387,113010.0,113000.0,0.13882444]
[1755854555628,1.29717387,113010.0,113000.0,0.10415444]
[1755854556723,1.29717387,113010.0,113000.0,0.12805278]
[1755854559125,1.01779087,113010.0,113000.0,0.10235278]
[1755854559325,1.29717387,113010.0,113000.0,0.10235278]
[1755854559924,0.18563087,113010.0,113000.0,0.10235278]
[1755854560131,1.01639087,113010.0,113000.0,0.10235278]
[1755854560430,1.29577387,113010.0,113000.0,0.10235278]
[1755854564136,1.01639087,113010.0,113000.0,0.10235278]
[1755854564432,1.29582221,113010.0,113000.0,0.38178412]
[1755854565026,1.29458221,113010.0,113000.0,0.38178412]
[1755854566134,1.29458221,113010.0,113000.0,0.10235278]
[1755854566435,1.01515087,113010.0,113000.0,0.40241578]
[1755854566626,1.29458221,113010.0,113000.0,0.37055134]
[1755854568342,1.29386221,113010.0,113000.0,0.10696]
[1755854568530,1.29386221,113010.0,113000.0,0.38639134]
[1755854568841,0.46506221,113010.0,113000.0,0.38639134]
[1755854569138,1.29346221,113010.0,113000.0,0.38639134]
[1755854569737,1.29346221,113010.0,113000.0,0.41030338]
[1755854569932,0.18563087,113010.0,113000.0,0.41030338]
[1755854570330,1.29314221,113010.0,113000.0,0.78550338]
[1755854571038,1.29510221,113010.0,113000.0,0.78550338]
[1755854572136,1.29510221,113010.0,113000.0,0.42470338]
[1755854572325,1.29510221,113010.0,113000.0,0.78550338]
[1755854573537,1.29510221,113010.0,113000.0,0.02391204]
[1755854573538,1.65590221,113010.0,113000.0,0.02391204]
[1755854573733,1.90273355,113010.0,112990.0,0.02391204]
[1755854573938,1.02949268,113000.0,112980.0,0.37472338]
[1755854574135,0.33885134,112990.0,112980.0,0.39924338]
[1755854574336,0.33885134,112990.0,112980.0,0.48061204]
[1755854574639,0.33885134,112990.0,112980.0,0.76004338]
[1755854575740,0.33885134,112990.0,112980.0,1.06204472]
[1755854576041,0.05942,112990.0,112980.0,0.78261338]
[1755854576233,0.33885134,112990.0,112980.0,0.75970134]
[1755854576438,0.05942,112990.0,112980.0,0.75975358]
[1755854576639,0.05942,112990.0,112980.0,0.79161802]
[1755854577637,0.10983,112990.0,112980.0,0.79161802]
[1755854579140,0.10983,112990.0,112980.0,0.79061802]
[1755854580240,0.10983,112990.0,112980.0,0.43975444]
[1755854580436,0.42022,112990.0,112980.0,0.11643444]
[1755854580642,0.69970358,112990.0,112980.0,0.12592467]
[1755854580846,0.75011358,112990.0,112980.0,0.10407]
[1755854581740,0.47063,112990.0,112980.0,0.10407]
[1755854582046,0.75011358,112990.0,112980.0,0.10407]
[1755854582248,0.47063,112990.0,112980.0,0.11847]
[1755854582444,1.30181,112990.0,112980.0,0.11847]
[1755854582648,1.30381,112990.0,112980.0,0.11847]
[1755854583735,1.32347,112990.0,112980.0,0.11847]
[1755854587245,0.47263,112990.0,112980.0,0.11847]
[1755854587551,1.32211,112990.0,112980.0,0.11847]
[1755854590547,1.32115,112990.0,112980.0,0.11847]
[1755854590750,0.40256,112990.0,112980.0,0.39795358]
[1755854590949,0.01125,112990.0,112980.0,1.15144979]
[1755854591155,0.002,112990.0,112980.0,1.15144979]
[1755854591546,0.002,112990.0,112980.0,1.409424]
[1755854591745,0.1524,113000.0,112990.0,0.11847]
[1755854591944,0.1524,113000.0,112990.0,0.81446943]
[1755854592450,0.1524,113000.0,112990.0,0.79061802]
[1755854592752,1.49805087,113010.0,112990.0,0.79061802]
[1755854592953,1.54846087,113010.0,113000.0,0.42180533]
[1755854594554,1.55046087,113010.0,113000.0,0.42180533]
[1755854594746,1.57012087,113010.0,113000.0,0.14232175]
[1755854594948,1.57012087,113010.0,113000.0,0.42180533]
[1755854595353,1.57012087,113010.0,113000.0,0.14232175]
[1755854596752,1.57012087,113010.0,113000.0,0.11847]
[1755854599458,1.56912087,113010.0,113000.0,0.11847]
[1755854600357,1.56912087,113010.0,113000.0,0.39795358]
[1755854603154,0.75075087,113010.0,113000.0,0.39795358]
[1755854603358,1.54586087,113010.0,113000.0,0.39795358]
[1755854603663,1.59627087,113010.0,113000.0,0.39795358]
[1755854604658,1.59627087,113010.0,113000.0,0.42180533]
[1755854604859,1.59627087,113010.0,113000.0,0.14232175]
[1755854605060,1.59627087,113010.0,113000.0,0.42180533]
[1755854608862,1.54494087,113010.0,113000.0,0.42180533]
[1755854609966,1.54494087,113010.0,113000.0,0.14232175]
[1755854610160,1.54494087,113010.0,113000.0,0.42180533]
[1755854610666,1.54494087,113010.0,113000.0,0.37350533]
[1755854610963,1.54494087,113010.0,113000.0,0.40619533]
[1755854611359,1.54494087,113010.0,113000.0,0.39665358]
[1755854612167,0.70034087,113010.0,113000.0,0.39665358]
[1755854612365,1.18274087,113010.0,113000.0,0.42050533]
[1755854612562,0.31988087,113010.0,113000.0,0.78130533]
[1755854612770,1.16336087,113010.0,113000.0,0.78130533]
[1755854613368,0.30356087,113010.0,113000.0,0.50182175]
[1755854613555,0.31988087,113010.0,113000.0,0.78130533]
[1755854616771,0.31988087,113010.0,113000.0,0.75745358]
[1755854620270,0.31988087,113010.0,113000.0,0.78130533]
[1755854624774,0.24985,113010.0,113000.0,0.50182175]
[1755854624979,0.26951,113010.0,113000.0,0.50182175]
[1755854625285,1.38871358,113010.0,113000.0,0.45482175]
[1755854625577,1.43912358,113010.0,113000.0,0.06950175]
[1755854625777,1.15964,113010.0,113000.0,0.06950175]
[1755854625972,1.15964,113010.0,113000.0,0.11167175]
[1755854626678,1.15964,113010.0,113000.0,0.13569444]
[1755854626879,1.15964,113010.0,113000.0,0.10300444]
[1755854627077,1.15964,113010.0,113000.0,0.08699444]
[1755854627276,1.15964,113010.0,113000.0,0.10907444]
[1755854627677,1.23045142,113010.0,113000.0,0.11868444]
[1755854628475,1.18004142,113010.0,113000.0,0.11868444]
[1755854628675,1.23045142,113010.0,113000.0,0.08712444]
[1755854631878,1.22897142,113010.0,113000.0,0.08712444]
[1755854632278,1.22897142,113010.0,113000.0,0.11868444]
[1755854633383,1.22865142,113010.0,113000.0,0.11868444]
[1755854634082,0.39073142,113010.0,113000.0,0.11868444]
[1755854634286,1.22841142,113010.0,113000.0,0.11868444]
[1755854634588,1.22841142,113010.0,113000.0,0.13532444]
[1755854634882,1.22817142,113010.0,113000.0,0.13532444]
[1755854635284,1.22817142,113010.0,113000.0,0.14897444]
[1755854635988,0.39073142,113010.0,113000.0,0.14897444]
[1755854636285,1.22797142,113010.0,113000.0,0.42845802]